bitfinex/quotes_ETHUSD_20220111
["timestamp","ask_amount","ask_price","bid_price","bid_amount"]
[1641877358027,3.80975898,3117.8,3117.5,0.00052842]
[1641877358028,5.7,3117.7,3117.5,0.00052842]
[1641877358227,8.42173171,3117.6,3117.5,0.00052842]
[1641877358427,9.02173171,3117.6,3117.5,0.00052842]
[1641877358626,4.98017,3117.6,3117.5,0.00166527]
[1641877358825,6.38344532,3117.6,3117.5,0.00166527]
[1641877359031,5.78344532,3117.6,3117.5,0.00166527]
[1641877359230,6.08344532,3117.6,3117.5,0.00166527]
[1641877360528,0.38017,3117.6,3117.5,0.00166527]
[1641877360769,0.08018,3117.7,3117.5,0.00166527]
[1641877366415,0.38018,3117.7,3117.5,0.00166527]
[1641877366614,0.3,3117.7,3117.5,0.00166527]
[1641877367217,0.6,3117.7,3117.5,0.00166527]
[1641877367817,0.68017,3117.7,3117.5,0.00166527]
[1641877369270,0.6,3117.7,3117.5,0.00166527]
[1641877372328,3.48224759,3117.8,3117.5,0.00166527]
[1641877372528,1.1381,3117.8,3117.5,0.00166527]
[1641877377367,4.06625857,3117.9,3117.5,0.00166527]
[1641877378573,0.00113684,3117.9,3117.5,0.00166527]
[1641877379517,0.00113684,3117.9,3117.6,1.63243935]
[1641877379716,0.00113684,3117.9,3117.7,0.08017]
[1641877380518,0.00113684,3117.9,3117.8,0.79222656]
[1641877381417,0.94654946,3117.9,3117.8,0.79222656]
[1641877381818,0.00113684,3117.9,3117.8,0.79222656]
[1641877382422,0.00113684,3117.9,3117.7,0.79222656]
[1641877383375,0.00113684,3117.9,3117.6,2.42466591]
[1641877383573,0.00113684,3117.9,3117.6,3.42466591]
[1641877383771,0.00113684,3117.9,3117.6,2.42466591]
[1641877384573,0.00113684,3117.9,3117.8,0.79222656]
[1641877385273,0.00113684,3117.9,3117.6,0.79222656]
[1641877385675,0.00113684,3117.9,3117.8,0.79222656]
[1641877387016,0.00113684,3117.9,3117.6,0.79222656]
[1641877387517,0.00113684,3117.9,3117.6,1.63243935]
[1641877387718,0.00113684,3117.9,3117.7,2.42466591]
[1641877388317,0.00113684,3117.9,3117.7,0.79222656]
[1641877389520,0.00113684,3117.9,3117.7,1.79222656]
[1641877390019,0.00113684,3117.9,3117.7,3.42466591]
[1641877390223,0.00113684,3117.9,3117.7,2.42466591]
[1641877390666,0.00113684,3117.9,3117.8,0.79222656]
[1641877393478,0.00113684,3117.9,3117.7,0.79222656]
[1641877395421,0.00113684,3117.9,3117.6,2.42466591]
[1641877396218,0.00113684,3117.9,3117.7,0.79222656]
[1641877396819,0.00113684,3117.9,3117.6,2.42466591]
[1641877397725,0.00113684,3117.9,3117.8,0.79222656]
[1641877398174,0.00113684,3117.9,3117.6,0.79222656]
[1641877398875,0.00113684,3117.9,3117.5,0.79275498]
[1641877399675,0.00113684,3117.9,3117.7,0.79222656]
[1641877400074,0.00113684,3117.9,3117.8,5.78017]
[1641877400580,0.00113684,3117.9,3117.8,6.78017]
[1641877401174,0.00113684,3117.9,3117.8,1.08017]
[1641877401375,0.00113684,3117.9,3117.8,1.87239656]
[1641877401576,0.00023644,3117.9,3117.8,1.87239656]
[1641877402248,0.00023644,3117.9,3117.8,3.4965781]
[1641877402546,0.00023644,3117.9,3117.8,3.4164081]
[1641877402946,0.00023644,3117.9,3117.8,4.5664081]
[1641877403150,0.00023644,3117.9,3117.8,3.94222656]
[1641877403350,0.00023644,3117.9,3117.8,1.79222656]
[1641877405449,0.00023644,3117.9,3117.8,0.79222656]
[1641877405664,0.00023644,3117.9,3117.8,1.79222656]
[1641877405865,0.00023644,3117.9,3117.8,0.79222656]
[1641877406065,0.00023644,3117.9,3117.8,1.79222656]
[1641877406266,0.00023644,3117.9,3117.8,0.87239656]
[1641877406466,0.00023644,3117.9,3117.8,1.87239656]
[1641877406666,0.00023644,3117.9,3117.8,0.87239656]
[1641877406867,0.00023644,3117.9,3117.8,4.62239656]
[1641877407080,0.00023644,3117.9,3117.8,5.62239656]
[1641877407670,0.00023644,3117.9,3117.8,5.54222656]
[1641877409613,0.00023644,3117.9,3117.8,7.16723237]
[1641877410212,0.00023644,3117.9,3117.8,7.98005662]
[1641877410816,1.1350617,3118.8,3117.8,7.98005662]
[1641877411012,1.1350617,3118.8,3117.9,0.08017]
[1641877411214,1.1350617,3118.8,3117.9,1.08017]
[1641877411515,0.00592068,3118.9,3118.0,1.62429706]
[1641877411713,0.00592068,3118.9,3118.1,3.60982729]
[1641877411914,0.00535226,3118.8,3118.1,3.60982729]
[1641877412117,0.00535226,3118.8,3118.2,1.0]
[1641877412316,0.00478383,3118.7,3118.2,1.0]
[1641877412515,0.00478383,3118.7,3118.3,3.52615495]
[1641877412713,0.00421541,3118.6,3118.3,4.31838151]
[1641877412913,0.00421541,3118.6,3118.4,1.0]
[1641877413167,0.00364699,3118.5,3118.4,1.0]
[1641877413367,0.00364699,3118.5,3118.4,1.79222656]
[1641877413564,0.00364699,3118.5,3118.4,0.79222656]
[1641877414970,0.00364699,3118.5,3118.3,0.79222656]
[1641877415370,0.00307856,3118.4,3118.2,1.0]
[1641877415572,0.00307856,3118.4,3118.2,1.08017]
[1641877415769,0.00251014,3118.3,3118.2,4.08017]
[1641877415974,0.00251014,3118.3,3118.2,3.0]
[1641877416172,0.00251014,3118.3,3118.2,4.0]
[1641877416371,0.00251014,3118.3,3118.2,7.45854341]
[1641877416572,0.00251014,3118.3,3118.2,4.0]
[1641877418017,0.00251014,3118.3,3118.2,7.61445231]
[1641877418216,0.00251014,3118.3,3118.2,4.0]
[1641877418419,0.00251014,3118.3,3118.2,5.62429706]
[1641877419621,0.00251014,3118.3,3118.2,4.0]
[1641877423568,0.00251014,3118.3,3118.2,5.62429706]
[1641877426321,0.00251014,3118.3,3118.2,9.24470969]
[1641877426918,0.00251014,3118.3,3118.2,7.62041263]
[1641877427117,0.00051644,3118.3,3118.2,7.62041263]
[1641877427518,0.00051644,3118.3,3118.2,7.7586126]
[1641877428267,0.00051644,3118.3,3118.2,7.60636153]
[1641877428670,0.00051644,3118.3,3118.2,4.13819997]
[1641877429366,0.00051644,3118.3,3118.2,7.6175928]
[1641877429569,0.00051644,3118.3,3118.2,7.59504015]
[1641877429767,0.00051644,3118.3,3118.2,4.13819997]
[1641877430367,0.00051644,3118.3,3118.2,1.13819997]
[1641877430570,0.00051644,3118.3,3118.2,0.9465934]
[1641877431169,0.00051644,3118.3,3118.2,4.45760432]
[1641877431370,0.00051644,3118.3,3118.2,5.45760432]
[1641877431576,0.00051644,3118.3,3118.2,1.9465934]
[1641877432018,0.00051644,3118.3,3118.2,5.48239875]
[1641877433821,0.00051644,3118.3,3118.2,5.47425055]
[1641877434021,0.00051644,3118.3,3118.2,1.9465934]
[1641877434325,0.00051644,3118.3,3118.2,5.43928712]
[1641877434821,0.00051644,3118.3,3118.2,5.54202711]
[1641877435021,1.19246609,3118.9,3118.3,2.5]
[1641877435424,0.00284212,3118.8,3118.3,3.5]
[1641877435867,0.00227369,3118.7,3118.3,3.5]
[1641877436267,0.00170527,3118.6,3118.3,3.5]
[1641877436666,0.00113685,3118.5,3118.4,0.80839343]
[1641877437066,0.00113685,3118.5,3118.4,1.80839343]
[1641877437570,5.70113685,3118.5,3118.1,2.43750724]
[1641877437769,7.96820564,3118.4,3118.1,0.80839343]
[1641877437972,4.73017,3118.4,3118.1,0.80839343]
[1641877438567,1.10896966,3118.3,3118.1,0.80839343]
[1641877438770,6.73432528,3118.2,3118.1,0.80839343]
[1641877438968,7.33432528,3118.2,3118.1,0.80839343]
[1641877439171,5.7,3118.1,3117.5,0.00052842]
[1641877439432,0.80202,3117.9,3117.5,0.00052842]
[1641877439622,0.08017,3117.8,3117.6,0.00284212]
[1641877440120,2.43427254,3117.7,3117.6,0.00284212]
[1641877440322,2.51444254,3117.7,3117.6,0.00284212]
[1641877440621,2.81444254,3117.7,3117.6,0.00284212]
[1641877441620,2.51444254,3117.7,3117.6,0.00284212]
[1641877441822,2.81444254,3117.7,3117.6,0.00284212]
[1641877442323,1.36641368,3117.7,3117.6,0.00284212]
[1641877442524,1.04726,3118.0,3117.6,0.00284212]
[1641877442525,0.2452,3118.0,3117.6,0.00284212]
[1641877444870,0.2452,3118.0,3117.6,0.08301212]
[1641877445270,0.2452,3118.0,3117.7,0.00227369]
[1641877445973,0.2452,3118.0,3117.8,0.08017]
[1641877446271,0.2452,3118.0,3117.9,0.00113685]
[1641877446471,0.2452,3118.0,3117.9,0.08130685]
[1641877448116,0.2452,3118.0,3117.9,1.08130685]
[1641877448318,0.2452,3118.0,3117.9,0.08130685]
[1641877448520,0.2452,3118.0,3117.9,1.08130685]
[1641877448918,0.215437,3118.0,3117.9,0.08130685]
[1641877449117,0.215437,3118.0,3117.9,1.08130685]
[1641877449318,0.215437,3118.0,3117.9,1.71011885]
[1641877449922,0.00113685,3118.5,3117.9,5.3252677]
[1641877450120,0.00113685,3118.5,3118.0,1.0]
[1641877450320,0.00170527,3118.4,3118.0,1.0]
[1641877450519,0.00170527,3118.4,3117.9,0.08130685]
[1641877450771,1.94639,3119.0,3117.9,0.08130685]
[1641877450772,0.00113685,3118.3,3117.9,0.00113685]
[1641877450969,0.00113685,3118.3,3117.9,1.62994885]
[1641877451169,1.28737034,3118.5,3117.9,1.62994885]
[1641877451572,0.00170527,3118.4,3117.9,0.00113685]
[1641877451969,0.00113685,3118.3,3117.9,0.00113685]
[1641877452370,0.00170527,3118.4,3117.9,0.00113685]
[1641877452774,0.00113685,3118.3,3117.9,0.00113685]
[1641877453271,0.00170527,3118.4,3117.9,0.00113685]
[1641877453775,0.00113685,3118.3,3117.9,3.56168494]
[1641877454171,0.00454739,3118.9,3118.0,1.0]
[1641877454623,0.00397897,3118.8,3118.0,1.0]
[1641877455026,1.31046249,3118.7,3117.9,5.08361763]
[1641877455228,1.31046249,3118.7,3117.9,5.09028052]
[1641877455426,5.74889282,3119.5,3117.9,5.09028052]
[1641877455427,0.00284212,3118.6,3118.0,1.462]
[1641877455627,0.00284212,3118.6,3118.1,4.27855716]
[1641877455924,5.74889282,3119.5,3118.1,4.74055716]
[1641877455925,0.0022737,3118.5,3118.1,4.74055716]
[1641877456125,0.0022737,3118.5,3118.2,1.0]
[1641877456325,0.00170527,3118.4,3118.0,5.63016224]
[1641877456524,0.00170527,3118.4,3118.2,1.628812]
[1641877456726,0.00113685,3118.3,3118.2,1.628812]
[1641877458171,0.00113685,3118.3,3118.2,0.48879122]
[1641877458375,1.28913377,3118.9,3118.2,0.48879122]
[1641877458671,0.00284212,3118.8,3118.2,0.48879122]
[1641877459073,0.00227369,3118.7,3118.2,0.48879122]
[1641877459373,0.00170527,3118.6,3118.2,0.48879122]
[1641877459571,0.00170527,3118.6,3118.2,0.43879122]
[1641877459772,0.00113685,3118.5,3118.2,0.43879122]
[1641877459972,0.00113685,3118.5,3118.1,1.0]
[1641877460172,0.00113685,3118.5,3118.1,2.628812]
[1641877460773,0.00113685,3118.5,3118.1,1.0]
[1641877461575,0.83552398,3118.5,3118.1,1.0]
[1641877462024,0.83552398,3118.5,3118.0,2.708982]
[1641877462225,0.83552398,3118.5,3118.0,1.708982]
[1641877462425,0.83552398,3118.5,3118.1,1.00113685]
[1641877462624,0.83552398,3118.5,3118.1,0.00113685]
[1641877462825,0.83552398,3118.5,3118.1,1.00113685]
[1641877463129,1.383559,3118.4,3118.1,2.62994885]
[1641877463526,1.383559,3118.4,3118.2,1.0]
[1641877463925,1.383559,3118.4,3118.1,1.00113685]
[1641877464126,0.83552398,3118.5,3118.1,1.00113685]
[1641877465029,0.83552398,3118.5,3118.1,0.00113685]
[1641877465532,0.83552398,3118.5,3118.1,1.00113685]
[1641877465783,0.83552398,3118.5,3118.1,0.00113685]
[1641877465978,0.83552398,3118.5,3118.1,1.00113685]
[1641877467179,0.83552398,3118.5,3118.1,0.00113685]
[1641877467780,0.83552398,3118.5,3118.0,0.00170527]
[1641877469434,0.83552398,3118.5,3118.0,3.45307839]
[1641877469622,0.83552398,3118.5,3118.1,1.0]
[1641877469823,0.83552398,3118.5,3118.1,1.00113685]
[1641877470025,0.83552398,3118.5,3118.2,1.628812]
[1641877470825,0.83552398,3118.5,3118.1,1.62994885]
[1641877471031,1.13552398,3118.5,3118.1,1.62994885]
[1641877471232,0.08017,3118.4,3118.1,1.62994885]
[1641877472327,0.08017,3118.4,3118.1,0.00113685]
[1641877472727,0.08017,3118.4,3118.0,0.00170527]
[1641877473187,0.08017,3118.4,3117.8,0.00284212]
[1641877473592,1.35709109,3117.9,3117.6,0.00397897]
[1641877473788,1.0600858,3117.8,3117.6,0.00397897]
[1641877474989,1.0600858,3117.8,3117.6,1.63279097]
[1641877475392,1.0600858,3117.8,3117.7,0.00341054]
[1641877476292,1.0600858,3117.8,3117.7,1.63222254]
[1641877476491,2.60809812,3117.8,3117.7,1.63222254]
[1641877476935,2.60809812,3117.8,3117.7,0.00341054]
[1641877477326,1.0600858,3117.8,3117.7,0.00341054]
[1641877478327,1.0600858,3117.8,3117.6,0.00397897]
[1641877478929,1.0600858,3117.8,3117.6,1.63279097]
[1641877479330,1.3600858,3117.8,3117.7,0.00341054]
[1641877479533,1.4402558,3117.8,3117.7,0.00341054]
[1641877480529,1.3600858,3117.8,3117.7,0.00341054]
[1641877480776,1.6600858,3117.8,3117.6,0.00397897]
[1641877480976,1.0600858,3117.8,3117.6,0.00397897]
[1641877481174,0.08017,3118.1,3117.6,0.00397897]
[1641877481375,0.36194682,3118.2,3117.6,0.00397897]
[1641877481973,0.36194682,3118.2,3117.7,0.41275387]
[1641877482372,0.36194682,3118.2,3117.8,0.00284212]
[1641877484073,0.36194682,3118.2,3117.7,0.00341054]
[1641877484523,0.36194682,3118.2,3117.7,2.04497641]
[1641877484922,0.36194682,3118.2,3117.8,0.00284212]
[1641877485324,0.36194682,3118.2,3117.8,1.63165412]
[1641877485726,0.36194682,3118.2,3117.9,0.0022737]
[1641877486623,1.16386682,3118.2,3117.9,0.0022737]
[1641877486925,0.08017,3118.1,3117.9,0.0022737]
[1641877487522,0.08017,3118.1,3117.9,0.41502757]
[1641877487523,0.96705261,3118.1,3117.9,0.41502757]
[1641877487724,3.17117447,3118.1,3117.9,0.41502757]
[1641877487923,3.17117447,3118.1,3118.0,0.00170527]
[1641877488377,0.88688261,3118.1,3118.0,0.00170527]
[1641877488777,0.88688261,3118.1,3117.8,0.00284212]
[1641877488980,3.17117447,3118.1,3117.8,0.00284212]
[1641877489375,3.17117447,3118.1,3117.4,0.00511581]
[1641877489576,0.88688261,3118.1,3117.4,0.00511581]
[1641877489778,0.88688261,3118.1,3117.4,2.04668168]
[1641877490277,0.88688261,3118.1,3117.5,0.00454739]
[1641877490477,1.29359628,3117.7,3117.5,0.00454739]
[1641877490680,1.03786498,3117.6,3117.5,0.00454739]
[1641877491778,1.03786498,3117.6,3117.4,0.00511581]
[1641877492327,1.03786498,3117.6,3117.3,0.00568424]
[1641877492526,1.03786498,3117.6,3117.3,1.00568424]
[1641877493030,1.33786498,3117.6,3117.4,0.00511581]
[1641877493227,1.41804498,3117.6,3117.4,0.00511581]
[1641877493428,6.162,3117.5,3117.4,0.00511581]
[1641877493628,6.54218,3117.5,3117.4,0.00511581]
[1641877493827,5.7,3117.4,3117.0,2.44215798]
[1641877494134,1.25355258,3117.2,3117.1,0.00170527]
[1641877494327,1.71555258,3117.2,3117.1,0.00170527]
[1641877494729,1.71555258,3117.2,3116.9,0.00284212]
[1641877494927,1.71555258,3117.2,3116.4,0.00568424]
[1641877495128,0.80222,3117.0,3116.4,0.00568424]
[1641877495527,0.86721883,3116.6,3116.3,0.00625266]
[1641877495976,2.27677098,3116.6,3116.3,1.00625266]
[1641877496175,2.27677098,3116.6,3116.3,0.00625266]
[1641877496376,2.27677098,3116.6,3116.4,0.00568424]
[1641877496575,2.27677098,3116.6,3116.3,0.00625266]
[1641877496976,2.27677098,3116.6,3116.2,0.00682108]
[1641877497776,2.27677098,3116.6,3116.5,0.01498148]
[1641877498179,2.27677098,3116.6,3116.5,0.02009729]
[1641877501733,1.40955215,3116.6,3116.5,0.02009729]
[1641877502832,2.325577,3116.6,3116.5,0.02009729]
[1641877506382,2.325577,3116.6,3116.5,0.21118143]
[1641877510327,6.62174793,3116.6,3116.5,0.21118143]
[1641877510977,7.08374793,3116.6,3116.5,0.21118143]
[1641877511381,7.08374793,3116.6,3116.5,0.02009729]
[1641877512276,3.167787,3116.6,3116.5,0.02009729]
[1641877512479,6.88683453,3116.6,3116.5,0.02009729]
[1641877513077,3.167787,3116.6,3116.5,0.02009729]
[1641877513677,7.117787,3116.6,3116.5,0.02009729]
[1641877513881,3.4,3116.5,3115.5,3.9692]
[1641877514078,1.30191764,3115.8,3115.5,3.9692]
[1641877514435,1.30191764,3115.8,3115.6,0.00511581]
[1641877515028,1.30191764,3115.8,3115.3,0.00682109]
[1641877515223,1.30191764,3115.8,3115.6,0.18547283]
[1641877515624,1.30191764,3115.8,3115.7,0.00454739]
[1641877515826,0.08022,3116.2,3115.7,0.00454739]
[1641877516025,1.7659,3116.3,3115.7,0.00454739]
[1641877516225,2.2279,3116.3,3115.7,0.00454739]
[1641877516626,2.2279,3116.3,3115.5,0.00568424]
[1641877517028,2.2279,3116.3,3115.8,0.18547283]
[1641877517229,1.43406795,3116.1,3115.8,0.18547283]
[1641877517427,1.43406795,3116.1,3115.9,0.00341054]
[1641877518278,1.43406795,3116.1,3115.9,0.18547283]
[1641877518577,1.73406795,3116.1,3116.0,0.00284212]
[1641877519781,2.03406795,3116.1,3116.0,0.00284212]
[1641877519980,2.03406795,3116.1,3115.4,0.00625266]
[1641877520881,1.73406795,3116.1,3115.4,0.00625266]
[1641877521285,0.82391847,3115.6,3115.5,0.18547283]
[1641877521683,0.82391847,3115.6,3115.5,0.19115707]
[1641877523329,1.73406795,3116.1,3115.5,0.19115707]
[1641877524532,1.73406795,3116.1,3115.6,0.18547283]
[1641877524729,0.99836879,3115.7,3115.6,0.18547283]
[1641877526079,1.43406795,3116.1,3115.1,0.18547283]
[1641877526583,1.43406795,3116.1,3115.2,0.00738951]
[1641877526781,1.24612,3116.3,3115.6,0.18547283]
[1641877526980,1.15951405,3116.0,3115.6,0.18547283]
[1641877527181,4.89351581,3116.0,3115.7,0.00454739]
[1641877527481,0.38022,3115.9,3115.7,0.00454739]
[1641877527883,0.38022,3115.9,3115.4,0.00625266]
[1641877528081,1.17408339,3115.8,3115.4,0.00625266]
[1641877528282,0.08024,3115.7,3115.4,0.00625266]
[1641877528485,0.08024,3115.7,3115.0,0.00852636]
[1641877528880,0.08024,3115.7,3115.5,0.18550206]
[1641877529080,1.17408339,3115.8,3115.5,0.18550206]
[1641877529283,1.17408339,3115.8,3115.6,0.00511581]
[1641877530330,1.17408339,3115.8,3115.7,0.18550206]
[1641877530632,1.17408339,3115.8,3115.7,0.19004945]
[1641877536383,3.47408339,3115.8,3115.7,0.19004945]
[1641877537131,1.17408339,3115.8,3115.7,0.19004945]
[1641877538338,4.47408339,3115.8,3115.7,0.19004945]
[1641877540334,1.17408339,3115.8,3115.7,0.19004945]
[1641877540788,5.32404538,3115.8,3115.7,0.19004945]
[1641877540987,5.32404538,3115.8,3115.3,1.62447493]
[1641877540988,0.08022,3115.7,3115.3,1.62447493]
[1641877541183,0.8027,3115.6,3115.1,1.62447493]
[1641877541383,3.08024,3115.5,3115.4,0.00170527]
[1641877541583,3.3,3115.5,3115.4,0.00170527]
[1641877541784,3.38024,3115.5,3115.4,0.00170527]
[1641877541985,0.08024,3115.5,3115.4,0.00170527]
[1641877542385,2.98024,3115.5,3115.4,0.00170527]
[1641877543084,2.98024,3115.5,3115.1,0.00341054]
[1641877543285,0.08024,3115.4,3114.9,0.00454739]
[1641877543490,0.80271,3115.3,3114.9,0.00454739]
[1641877544184,0.80271,3115.3,3114.8,0.00511581]
[1641877544826,0.80271,3115.3,3114.7,1.00568424]
[1641877545027,0.94570193,3115.2,3114.8,0.00511581]
[1641877545427,0.94570193,3115.2,3114.7,0.00568424]
[1641877545626,1.14983452,3114.8,3114.6,1.58015917]
[1641877546427,1.14983452,3114.8,3114.4,2.44215798]
[1641877546628,1.14983452,3114.8,3114.1,2.44215798]
[1641877546827,1.14983452,3114.8,3114.5,0.00113684]
[1641877547027,0.33486476,3114.6,3114.5,0.00113684]
[1641877547626,4.16000193,3115.2,3114.5,0.00113684]
[1641877547627,3.99202491,3115.2,3114.5,0.00113684]
[1641877547829,1.20288137,3114.8,3114.5,0.00113684]
[1641877548027,1.20288137,3114.8,3114.2,0.00511581]
[1641877548283,1.20288137,3114.8,3114.6,0.0152824]
[1641877548588,1.20288137,3114.8,3114.7,0.0022737]
[1641877549884,3.99202491,3115.2,3114.7,0.0022737]
[1641877550086,4.29202491,3115.2,3114.7,0.0022737]
[1641877550285,3.2143,3115.2,3114.7,0.0022737]
[1641877550487,3.2143,3115.2,3114.7,3.46806666]
[1641877550690,3.2143,3115.2,3114.7,0.0022737]
[1641877550991,1.35455069,3115.5,3114.7,3.47859138]
[1641877551389,1.35455069,3115.5,3114.8,0.00170527]
[1641877551390,0.00113684,3115.3,3114.8,0.00170527]
[1641877552031,0.00113684,3115.3,3114.7,0.0022737]
[1641877552232,0.00113684,3115.3,3114.7,0.0825137]
[1641877552630,0.00113684,3115.3,3114.8,0.00170527]
[1641877553030,1.10717368,3115.3,3114.8,0.00170527]
[1641877553232,1.10717368,3115.3,3114.7,0.0022737]
[1641877553430,1.10717368,3115.3,3114.7,0.0825137]
[1641877553834,1.10717368,3115.3,3114.8,0.00170527]
[1641877554431,1.10717368,3115.3,3114.7,0.0022737]
[1641877554630,0.00113684,3115.3,3114.7,0.0825137]
[1641877555030,0.00113684,3115.3,3114.8,0.00170527]
[1641877556090,0.08024,3115.2,3114.8,0.00170527]
[1641877559199,0.08024,3115.2,3114.5,0.00341054]
[1641877559434,0.00113684,3115.3,3114.6,0.01243641]
[1641877559829,0.87594037,3115.2,3114.7,0.0022737]
[1641877560931,0.00711218,3115.0,3114.7,0.0022737]
[1641877561132,0.08024,3115.1,3114.5,0.00341054]
[1641877561330,0.87594037,3115.2,3114.5,0.00341054]
[1641877561529,0.08025,3115.1,3114.4,0.00397897]
[1641877561734,0.08025,3115.1,3114.5,0.13650851]
[1641877562128,0.08025,3115.1,3114.6,0.00284212]
[1641877563179,1.12437645,3114.7,3114.6,0.00284212]
[1641877563583,1.12437645,3114.7,3114.5,0.00341054]
[1641877563780,1.12437645,3114.7,3114.6,0.13650851]
[1641877564181,1.12437645,3114.7,3114.6,0.13935063]
[1641877564392,1.12437645,3114.7,3114.6,0.00284212]
[1641877564782,1.12437645,3114.7,3114.5,0.00341054]
[1641877570537,1.12437645,3114.7,3114.1,2.52240798]
[1641877570798,1.12437645,3114.7,3113.3,4.01423879]
[1641877570799,9.77824433,3114.6,3113.3,4.01423879]
[1641877570988,1.55512306,3114.5,3113.9,3.26006605]
[1641877571188,4.05970866,3114.4,3113.9,3.26006605]
[1641877571385,5.7,3114.3,3113.8,1.04977589]
[1641877571587,0.54228,3114.2,3113.8,1.04977589]
[1641877571786,1.35256098,3114.0,3113.8,0.42632268]
[1641877571985,3.24228,3113.9,3113.8,0.42632268]
[1641877572189,3.24228,3113.9,3113.4,4.01423879]
[1641877572486,1.02822631,3113.8,3113.5,0.0022737]
[1641877572684,0.08028,3113.7,3113.5,0.0022737]
[1641877572887,1.49022631,3113.8,3113.5,0.0022737]
[1641877573484,1.48569403,3113.7,3113.5,0.0022737]
[1641877573687,1.19180538,3113.2,3112.8,0.00625266]
[1641877573887,1.19180538,3113.2,3112.7,1.0]
[1641877573888,1.06742412,3113.0,3112.7,1.00682109]
[1641877574087,1.06742412,3113.0,3112.8,0.00625266]
[1641877574288,8.14958,3113.7,3112.8,0.00625266]
[1641877574534,8.0693,3113.7,3112.9,0.08029]
[1641877574738,0.46313684,3114.1,3112.9,0.08029]
[1641877574934,0.46313684,3114.1,3113.0,0.00511581]
[1641877575133,0.08028,3114.0,3113.0,0.00511581]
[1641877575332,1.48700015,3113.3,3112.9,0.00568424]
[1641877576733,0.84841694,3113.0,3112.9,0.00568424]
[1641877577338,0.84841694,3113.0,3112.7,0.00682109]
[1641877577533,0.84841694,3113.0,3112.8,0.08031]
[1641877577834,0.84841694,3113.0,3112.9,0.00568424]
[1641877578032,0.84841694,3113.0,3112.9,2.20568424]
[1641877578281,0.08029,3113.7,3112.9,2.50568424]
[1641877578479,0.54229,3113.7,3112.9,2.50568424]
[1641877578683,0.08029,3114.0,3113.0,1.00511581]
[1641877578889,0.08029,3114.0,3113.1,0.08028]
[1641877579081,1.30411403,3113.7,3113.1,0.08482739]
[1641877579284,0.82644481,3113.5,3113.2,0.00397897]
[1641877579681,0.82644481,3113.5,3113.1,0.00454739]
[1641877580688,0.08029,3113.4,3113.1,0.00454739]
[1641877582131,0.462,3113.3,3113.1,0.00454739]
[1641877582331,5.73029,3113.2,3113.1,0.00454739]
[1641877582533,6.19229,3113.2,3113.1,0.00454739]
[1641877582931,1.48195849,3113.0,3112.6,0.00738951]
[1641877583134,0.08031,3112.9,3112.6,0.00738951]
[1641877583332,0.08031,3113.5,3112.6,0.00738951]
[1641877583531,0.08031,3113.5,3112.6,0.08767951]
[1641877583732,0.08031,3113.5,3112.6,0.00738951]
[1641877583932,0.08031,3113.5,3112.7,0.00682109]
[1641877584134,0.92202703,3113.0,3112.6,0.00738951]
[1641877585785,0.08031,3113.3,3112.6,0.00738951]
[1641877586183,0.08031,3113.3,3112.6,1.19444135]
[1641877586481,0.08031,3113.3,3112.7,0.00682109]
[1641877586681,1.20652463,3113.4,3112.7,0.00682109]
[1641877586883,1.0039816,3112.8,3112.7,0.00682109]
[1641877587082,1.0039816,3112.8,3112.6,0.00738951]
[1641877587281,0.08029,3113.3,3112.6,0.00738951]
[1641877589086,1.11520581,3113.0,3112.6,0.00738951]
[1641877589731,0.00469159,3112.9,3112.6,0.00738951]
[1641877589932,1.11520581,3113.0,3112.6,0.00738951]
[1641877591031,0.08031,3112.9,3112.6,0.00738951]
[1641877591234,1.57700445,3112.9,3112.6,0.00738951]
[1641877591432,1.97380792,3112.9,3112.6,0.00738951]
[1641877592233,1.89349792,3112.9,3112.6,0.00738951]
[1641877593586,0.39680347,3112.9,3112.6,0.00738951]
[1641877593986,0.39680347,3112.9,3112.7,0.01146325]
[1641877594389,0.39680347,3112.9,3112.8,0.00625266]
[1641877594787,1.79016122,3112.9,3112.6,0.00738951]
[1641877596289,5.96037781,3112.9,3112.6,0.00738951]
[1641877597141,0.08031,3112.8,3112.6,0.00738951]
[1641877598245,5.852123,3112.9,3112.6,0.00738951]
[1641877598246,2.33247122,3112.9,3112.6,0.00738951]
[1641877598443,2.33247122,3112.9,3112.5,0.84526831]
[1641877598844,0.00113684,3112.8,3112.5,0.84526831]
[1641877608391,0.00113684,3112.8,3112.5,0.79526831]
[1641877609787,0.00113684,3112.8,3112.6,0.0045136]
[1641877610389,0.00113684,3112.8,3112.5,1.09526831]
[1641877610792,0.00113684,3112.8,3112.5,0.79526831]
[1641877613938,0.00113684,3112.8,3112.5,1.09526831]
[1641877614144,0.00113684,3112.8,3112.5,0.79526831]
[1641877617695,0.00113684,3112.8,3112.6,0.00769468]
[1641877618090,0.00113684,3112.8,3112.5,1.09526831]
[1641877618696,0.00113684,3112.8,3112.5,0.79526831]
[1641877620936,1.41469234,3112.6,3112.5,0.79526831]
[1641877624195,5.25645337,3112.6,3112.5,0.79526831]
[1641877624396,4.64500234,3112.6,3112.5,0.79526831]
[1641877624593,5.10700234,3112.6,3112.5,0.79526831]
[1641877626395,7.65700234,3112.6,3112.5,0.79526831]
[1641877627039,11.67403588,3112.6,3112.5,0.79526831]
[1641877627836,7.83983023,3112.6,3112.5,0.79526831]
[1641877628040,11.56892449,3112.6,3112.5,0.79526831]
[1641877628235,7.83983023,3112.6,3112.5,0.79526831]
[1641877629240,4.68983023,3112.6,3112.5,0.79526831]
[1641877629636,4.14752023,3112.6,3112.5,0.79526831]
[1641877630693,1.41469234,3112.6,3112.5,0.79526831]
[1641877633099,4.14726694,3112.6,3112.5,0.79526831]
[1641877633798,1.41469234,3112.6,3112.5,0.79526831]
[1641877634747,4.14729439,3112.6,3112.5,0.79526831]
[1641877634946,7.91672887,3112.6,3112.5,0.79526831]
[1641877635149,7.89555088,3112.6,3112.5,0.79526831]
[1641877635346,4.14729439,3112.6,3112.5,0.79526831]
[1641877635547,1.41469234,3112.6,3112.5,0.79526831]
[1641877636349,4.14729439,3112.6,3112.5,0.79526831]
[1641877644142,4.14729439,3112.6,3112.5,6.49526831]
[1641877644143,2.73260205,3112.6,3112.5,6.49526831]
[1641877644342,2.73260205,3112.6,3112.5,1.09526831]
[1641877644544,2.73260205,3112.6,3112.5,2.09526831]
[1641877644742,2.73260205,3112.6,3112.5,0.79526831]
[1641877644940,0.16,3112.8,3112.5,0.79526831]
[1641877646486,1.46918645,3112.6,3112.5,0.79526831]
[1641877646986,1.46918645,3112.6,3112.5,1.09526831]
[1641877647186,1.46918645,3112.6,3112.5,0.79526831]
[1641877647687,1.54949645,3112.6,3112.5,0.79526831]
[1641877647886,1.46918645,3112.6,3112.5,0.79526831]
[1641877648889,1.76036365,3112.6,3112.5,0.79526831]
[1641877649290,0.2911772,3112.6,3112.5,0.79526831]
[1641877649543,3.02364272,3112.6,3112.5,0.79526831]
[1641877649949,7.77486837,3112.6,3112.5,0.79526831]